[Event "Vienna Chess Open 2019"]
[Site "Vienna"]
[Date "2019.08.20"]
[Round "5.4"]
[White "Valmana Canto, Jaime"]
[Black "Pieper, Thomas"]
[Result "1-0"]
[ECO "A04"]
[WhiteElo "2406"]
[BlackElo "2234"]
[Annotator "NA"]
[PlyCount "79"]
[EventDate "2019.08.17"]
[EventType "swiss"]
[EventCountry "AUT"]
[SourceTitle "playchess.com"]
[Source "ChessBase"]
[SourceQuality "1"]
[TimeControl "40/5400+30:1800+30"]

1. Nf3 {[%emt 0:00:00]} c5 {[%emt 0:00:47]} 2. g3 {[%emt 0:00:16]} Nf6 {[%emt 0:00:40]} 3. Bg2 {[%emt 0:00:08]} g6 {[%emt 0:00:53]} 4. O-O {[%emt 0:00:59]} Bg7 {[%emt 0:00:28]} 5. c4 {[%emt 0:00:10]} Nc6 {[%emt 0:01:22]} 6. d4 {[%emt 0:00:12]} cxd4 {[%emt 0:00:54]} 7. Nxd4 {[%emt 0:00:09]} O-O {[%emt 0:03:02]} 8. Nc2 {[%emt 0:01:29]} d6 {[%emt 0:03:00]} 9. Nc3 {[%emt 0:00:11]} Qa5 {[%emt 0:13:40]} 10. Nd5 {[%emt 0:01:37]} Nxd5 {[%emt 0:01:33]} 11. cxd5 {[%emt 0:00:08]} Nb8 {[%emt 0:04:22]} 12. Na3 {[%emt 0:11:08]} Bd7 {[%emt 0:07:17]} 13. Be3 {[%emt 0:42:14]} Qa4 {[%emt 0:19:14]} 14. Qd2 {[%emt 0:00:34]} Na6 {[%emt 0:02:38]} 15. Bg5 {[%emt 0:22:03]} Rfe8 {[%emt 0:04:09]} 16. Rab1 {[%emt 0:04:04]} Rac8 {[%emt 0:08:13]} 17. Rfc1 {[%emt 0:03:49]} Qd4 {[%emt 0:13:56]} 18. Rxc8 {[%emt 0:01:58]} Rxc8 {[%emt 0:00:14]} 19. Qxd4 {[%emt 0:00:37]} Bxd4 {[%emt 0:00:07]} 20. Bxe7 {[%emt 0:00:08]} b5 {[%emt 0:04:06]} 21. e3 {[%emt 0:03:20]} Bf5 {[%emt 0:08:42]} 22. Re1 {[%emt 0:00:50]} Bxb2 {[%emt 0:00:54]} 23. Nxb5 {[%emt 0:00:13]} Rc2 {[%emt 0:00:39]} 24. Bxd6 {[%emt 0:02:58]} Bd7 {[%emt 0:00:32]} 25. a4 {[%emt 0:01:45]} Nc5 {[%emt 0:00:31]} 26. Bxc5 {[%emt 0:01:03]} Rxc5 {[%emt 0:00:09]} 27. Nxa7 {[%emt 0:00:29]} Ra5 {[%emt 0:00:46]} 28. Nc6 {[%emt 0:00:27]} Rxa4 {[%emt 0:00:14]} 29. Bf3 {[%emt 0:00:58]} Kf8 {[%emt 0:00:51]} 30. Rb1 {[%emt 0:00:18]} Bh3 {[%emt 0:00:32]} 31. Bd1 {[%emt 0:00:14]} Ra1 {[%emt 0:00:29]} 32. Rxa1 {[%emt 0:00:14]} Bxa1 {[%emt 0:00:02]} 33. f4 {[%emt 0:00:42]} Bc3 {[%emt 0:00:25]} 34. g4 {[%emt 0:00:23]} Ke8 {[%emt 0:01:00]} 35. Kf2 {[%emt 0:00:17]} Bf6 {[%emt 0:00:30]} 36. Bf3 {[%emt 0:01:01]} Bh4+ {[%emt 0:00:26]} 37. Ke2 {[%emt 0:00:01]} Bf6 {[%emt 0:00:39]} 38. e4 {[%emt 0:00:22]} Bc3 {[%emt 0:00:17]} 39. Ne5 {[%emt 0:00:32]} g5 {[%emt 0:00:35]} 40. Nd3 {[%emt 0:00:08]} 1-0

[Event "Vienna Chess Open 2019"]
[Site "Vienna"]
[Date "2019.08.20"]
[Round "5.5"]
[White "Nasuta, Grzegorz"]
[Black "Swicarz, Maciej"]
[Result "1-0"]
[ECO "B31"]
[WhiteElo "2533"]
[BlackElo "2341"]
[Annotator "ChessBase"]
[PlyCount "73"]
[EventDate "2019.08.17"]
[EventType "swiss"]
[EventCountry "AUT"]
[SourceTitle "playchess.com"]
[Source "ChessBase"]
[SourceQuality "1"]
[TimeControl "40/5400+30:1800+30"]

1. e4 {[%emt 0:00:00]} c5 {[%emt 0:00:00]} 2. Nf3 {[%emt 0:00:00]} Nc6 {[%emt 0:00:09]} 3. Bb5 {[%emt 0:00:00]} g6 {[%emt 0:00:14]} 4. O-O {[%emt 0:00:22]} Bg7 {[%emt 0:00:08]} 5. Re1 {[%emt 0:00:15]} e5 {[%emt 0:01:33]} 6. b4 {[%emt 0:00:29]} Nxb4 {[%emt 0:02:35]} 7. Bb2 {[%emt 0:00:09]} Qc7 {[%emt 0:11:30]} 8. c3 {[%emt 0:30:25]} Nc6 {[%emt 0:00:15]} 9. d4 {[%emt 0:00:03]} exd4 {[%emt 0:19:37]} 10. cxd4 {[%emt 0:01:35]} a6 {[%emt 0:02:40]} 11. Bxc6 {[%emt 0:15:40]} dxc6 {[%emt 0:00:27]} 12. Nc3 {[%emt 0:00:34]} cxd4 {[%emt 0:05:18]} 13. Nd5 {[%emt 0:00:05]} cxd5 {[%emt 0:03:06]} 14. exd5+ {[%emt 0:00:06]} Ne7 {[%emt 0:00:50]} 15. Bxd4 {[%emt 0:08:50]} Bxd4 {[%emt 0:05:56]} 16. Qxd4 {[%emt 0:00:06]} O-O {[%emt 0:00:12]} 17. d6 {[%emt 0:00:02]} Nf5 {[%emt 0:03:08]} 18. dxc7 {[%emt 0:00:07]} Nxd4 {[%emt 0:00:03]} 19. Nxd4 {[%emt 0:00:07]} Bd7 {[%emt 0:00:48]} 20. Re7 {[%emt 0:05:13]} Ba4 {[%emt 0:01:27]} 21. Rb1 {[%emt 0:00:28]} Bb5 {[%emt 0:10:52]} 22. h3 {[%emt 0:18:26]} Rfc8 {[%emt 0:01:19]} 23. Nxb5 {[%emt 0:07:13]} axb5 {[%emt 0:01:11]} 24. Rd1 {[%emt 0:00:06]} Kg7 {[%emt 0:02:55]} 25. Rdd7 {[%emt 0:01:42]} Rf8 {[%emt 0:00:05]} 26. g4 {[%emt 0:01:03]} g5 {[%emt 0:05:21]} 27. Re5 {[%emt 0:04:30]} h6 {[%emt 0:01:12]} 28. Red5 {[%emt 0:01:56]} Rfc8 {[%emt 0:04:12]} 29. Rf5 {[%emt 0:00:22]} Rf8 {[%emt 0:00:13]} 30. Rfd5 {[%emt 0:00:49]} Rfc8 {[%emt 0:00:11]} 31. Rf5 {[%emt 0:02:08]} Rf8 {[%emt 0:00:03]} 32. a3 {[%emt 0:00:05]} Kg6 {[%emt 0:02:52]} 33. Rxb5 {[%emt 0:00:22]} Rxa3 {[%emt 0:00:25]} 34. Rd8 {[%emt 0:00:44]} Ra8 {[%emt 0:00:53]} 35. Rbd5 {[%emt 0:00:15]} Rc8 {[%emt 0:03:45]} 36. Rxf8 {[%emt 0:00:08]} Rxf8 {[%emt 0:00:03]} 37. Rd8 {[%emt 0:00:05]} 1-0

[Event "Vienna Chess Open 2019"]
[Site "Vienna"]
[Date "2019.08.20"]
[Round "5.5"]
[White "Barp, Alberto"]
[Black "Hertneck, Gerald"]
[Result "1-0"]
[ECO "E11"]
[WhiteElo "2411"]
[BlackElo "2495"]
[Annotator "ChessBase"]
[PlyCount "115"]
[EventDate "2019.08.17"]
[EventType "swiss"]
[EventCountry "AUT"]
[SourceTitle "playchess.com"]
[Source "ChessBase"]
[SourceQuality "1"]
[TimeControl "40/5400+30:1800+30"]

1. d4 {[%emt 0:00:00]} Nf6 {[%emt 0:00:00]} 2. c4 {[%emt 0:00:00]} e6 {[%emt 0:00:00]} 3. Nf3 {[%emt 0:00:01]} Bb4+ {[%emt 0:00:00]} 4. Bd2 {[%emt 0:00:06]} c5 {[%emt 0:00:20]} 5. Bxb4 {[%emt 0:00:13]} cxb4 {[%emt 0:00:05]} 6. g3 {[%emt 0:01:13]} d6 {[%emt 0:00:55]} 7. Bg2 {[%emt 0:00:10]} Nc6 {[%emt 0:00:06]} 8. O-O {[%emt 0:00:41]} O-O {[%emt 0:00:05]} 9. a3 {[%emt 0:00:16]} bxa3 {[%emt 0:00:11]} 10. Nxa3 {[%emt 0:00:06]} e5 {[%emt 0:00:26]} 11. Nb5 {[%emt 0:03:55]} a6 {[%emt 0:04:09]} 12. dxe5 {[%emt 0:12:48]} dxe5 {[%emt 0:02:56]} 13. c5 {[%emt 0:00:36]} Bd7 {[%emt 0:03:56]} 14. Nd6 {[%emt 0:02:53]} b6 {[%emt 0:15:19]} 15. Qc1 {[%emt 0:23:12]} Qe7 {[%emt 0:08:46]} 16. Rd1 {[%emt 0:01:29]} bxc5 {[%emt 0:06:20]} 17. Qxc5 {[%emt 0:00:08]} a5 {[%emt 0:00:07]} 18. e3 {[%emt 0:12:10]} Rab8 {[%emt 0:05:25]} 19. Ng5 {[%emt 0:05:24]} Nd8 {[%emt 0:04:03]} 20. Rxa5 {[%emt 0:09:49]} Rxb2 {[%emt 0:00:07]} 21. h3 {[%emt 0:09:05]} Be8 {[%emt 0:05:36]} 22. Qxe5 {[%emt 0:04:25]} Qxe5 {[%emt 0:00:11]} 23. Rxe5 {[%emt 0:00:03]} Ba4 {[%emt 0:02:27]} 24. Rc1 {[%emt 0:01:29]} Rc2 {[%emt 0:01:41]} 25. Rxc2 {[%emt 0:00:59]} Bxc2 {[%emt 0:00:05]} 26. Re7 {[%emt 0:01:56]} h6 {[%emt 0:00:14]} 27. Nf3 {[%emt 0:01:03]} Nc6 {[%emt 0:00:16]} 28. Rc7 {[%emt 0:00:51]} Ba4 {[%emt 0:00:05]} 29. Nh4 {[%emt 0:01:16]} Ne5 {[%emt 0:00:08]} 30. Nhf5 {[%emt 0:01:20]} Rb8 {[%emt 0:02:05]} 31. Rc8+ {[%emt 0:02:03]} Rxc8 {[%emt 0:00:06]} 32. Nxc8 {[%emt 0:00:05]} Bd7 {[%emt 0:00:24]} 33. Ncd6 {[%emt 0:00:06]} Ne8 {[%emt 0:01:03]} 34. f4 {[%emt 0:01:22]} Nxd6 {[%emt 0:02:09]} 35. Nxd6 {[%emt 0:00:09]} Nc6 {[%emt 0:00:47]} 36. Bxc6 {[%emt 0:02:51]} Bxc6 {[%emt 0:01:37]} 37. Kf2 {[%emt 0:02:40]} h5 {[%emt 0:00:30]} 38. e4 {[%emt 0:00:19]} Bd7 {[%emt 0:00:23]} 39. h4 {[%emt 0:00:40]} Kf8 {[%emt 0:00:18]} 40. Ke3 Ke7 {[%emt 0:00:04]} 41. Nc4 {[%emt 0:31:14]} f6 42. Kd4 Bc6 {[%emt 0:01:31]} 43. Ne3 {[%emt 0:00:00]} Ke6 {[%emt 0:00:42]} 44. Nf5 {[%emt 0:00:00]} g6 {[%emt 0:00:33]} 45. Ne3 {[%emt 0:00:00]} Bb7 46. f5+ {[%emt 0:00:00]} Kf7 {[%emt 0:00:41]} 47. fxg6+ {[%emt 0:00:00]} Kxg6 {[%emt 0:00:07]} 48. Nd5 {[%emt 0:00:00]} Kg7 {[%emt 0:01:37]} 49. Nf4 {[%emt 0:00:00]} Kh6 {[%emt 0:00:15]} 50. e5 {[%emt 0:00:00]} fxe5+ {[%emt 0:00:06]} 51. Kxe5 {[%emt 0:00:00]} Bf3 {[%emt 0:00:16]} 52. Kf6 {[%emt 0:00:00]} Bd1 {[%emt 0:00:20]} 53. Ne6 {[%emt 0:00:00]} Bg4 {[%emt 0:00:07]} 54. Nd4 {[%emt 0:00:00]} Bd1 {[%emt 0:00:13]} 55. Nf5+ {[%emt 0:00:00]} Kh7 {[%emt 0:00:03]} 56. Kg5 {[%emt 0:00:00]} Be2 {[%emt 0:00:08]} 57. Ne7 {[%emt 0:00:00]} Kg7 {[%emt 0:00:13]} 58. Nd5 {[%emt 0:00:05]} 1-0

[Event "Vienna Chess Open 2019"]
[Site "Vienna"]
[Date "2019.08.20"]
[Round "5.5"]
[White "Halvax, Georg"]
[Black "Michaelides, Konstantinos"]
[Result "1-0"]
[ECO "E11"]
[WhiteElo "2403"]
[BlackElo "2178"]
[Annotator "NA"]
[PlyCount "65"]
[EventDate "2019.08.17"]
[EventType "swiss"]
[EventCountry "AUT"]
[SourceTitle "playchess.com"]
[Source "ChessBase"]
[SourceQuality "1"]
[TimeControl "40/5400+30:1800+30"]

1. d4 {[%emt 0:00:00]} Nf6 {[%emt 0:00:01]} 2. c4 {[%emt 0:00:58]} e6 {[%emt 0:00:20]} 3. Nf3 {[%emt 0:00:39]} Bb4+ {[%emt 0:00:30]} 4. Bd2 {[%emt 0:00:53]} a5 {[%emt 0:00:46]} 5. a3 {[%emt 0:01:14]} Bxd2+ {[%emt 0:01:09]} 6. Qxd2 {[%emt 0:00:25]} d6 {[%emt 0:01:15]} 7. Nc3 {[%emt 0:00:46]} Nbd7 {[%emt 0:01:00]} 8. e3 {[%emt 0:02:52]} O-O {[%emt 0:01:11]} 9. Be2 {[%emt 0:00:40]} e5 {[%emt 0:02:30]} 10. O-O {[%emt 0:00:35]} Qe7 {[%emt 0:02:19]} 11. Qc2 {[%emt 0:04:32]} c6 {[%emt 0:04:00]} 12. b4 {[%emt 0:06:46]} Re8 {[%emt 0:11:35]} 13. dxe5 {[%emt 0:17:31]} Nxe5 {[%emt 0:05:48]} 14. Nd4 {[%emt 0:02:23]} Be6 {[%emt 0:10:49]} 15. Na4 {[%emt 0:09:18]} axb4 {[%emt 0:10:39]} 16. axb4 {[%emt 0:00:57]} Rad8 {[%emt 0:02:04]} 17. c5 {[%emt 0:05:15]} g6 {[%emt 0:06:27]} 18. cxd6 {[%emt 0:07:51]} Qxd6 {[%emt 0:02:25]} 19. Nc5 {[%emt 0:01:21]} Bc8 {[%emt 0:01:47]} 20. h3 {[%emt 0:02:11]} Nd5 {[%emt 0:11:12]} 21. b5 {[%emt 0:06:39]} f5 {[%emt 0:04:29]} 22. bxc6 {[%emt 0:04:13]} bxc6 {[%emt 0:01:41]} 23. Rfd1 {[%emt 0:00:46]} Qf8 {[%emt 0:03:39]} 24. Ba6 {[%emt 0:12:07]} Qf7 {[%emt 0:04:39]} 25. Bc4 {[%emt 0:02:44]} Kh8 {[%emt 0:01:54]} 26. Bb3 {[%emt 0:01:26]} Qf6 {[%emt 0:01:46]} 27. Ra7 {[%emt 0:02:44]} f4 {[%emt 0:02:00]} 28. Ne4 {[%emt 0:02:46]} Qf8 {[%emt 0:01:54]} 29. Nxc6 {[%emt 0:00:56]} Nxc6 {[%emt 0:03:22]} 30. Qxc6 {[%emt 0:00:13]} Rxe4 {[%emt 0:00:41]} 31. Rxd5 {[%emt 0:00:18]} Rxd5 {[%emt 0:00:54]} 32. Bxd5 {[%emt 0:00:13]} Re5 {[%emt 0:00:39]} 33. Qc3 {[%emt 0:00:40]} 1-0

[Event "Vienna Chess Open 2019"]
[Site "Vienna"]
[Date "2019.08.20"]
[Round "5.6"]
[White "Yankelevich, Lev"]
[Black "Schwabeneder, Florian"]
[Result "1-0"]
[ECO "A04"]
[WhiteElo "2480"]
[BlackElo "2404"]
[Annotator "ChessBase"]
[PlyCount "115"]
[EventDate "2019.08.17"]
[EventType "swiss"]
[EventCountry "AUT"]
[SourceTitle "playchess.com"]
[Source "ChessBase"]
[SourceQuality "1"]
[TimeControl "40/5400+30:1800+30"]

1. Nf3 {[%emt 0:01:03]} d6 {[%emt 0:00:45]} 2. d4 {[%emt 0:00:14]} Nf6 {[%emt 0:01:16]} 3. c4 {[%emt 0:00:23]} Nbd7 {[%emt 0:01:31]} 4. Nc3 {[%emt 0:00:19]} g6 {[%emt 0:01:54]} 5. e4 {[%emt 0:00:03]} e5 {[%emt 0:00:11]} 6. Be2 {[%emt 0:00:04]} Bg7 {[%emt 0:00:08]} 7. Be3 {[%emt 0:00:12]} O-O {[%emt 0:03:12]} 8. d5 {[%emt 0:00:01]} Ng4 {[%emt 0:09:22]} 9. Bg5 {[%emt 0:00:03]} f6 {[%emt 0:00:14]} 10. Bd2 {[%emt 0:00:07]} Nh6 {[%emt 0:14:46]} 11. h4 {[%emt 0:00:26]} a5 {[%emt 0:02:25]} 12. Qc1 {[%emt 0:05:51]} Nf7 {[%emt 0:02:14]} 13. h5 {[%emt 0:00:03]} g5 {[%emt 0:07:58]} 14. Nh2 {[%emt 0:07:56]} c6 {[%emt 0:09:40]} 15. O-O {[%emt 0:02:43]} Nb6 {[%emt 0:09:28]} 16. g4 {[%emt 0:01:52]} Re8 {[%emt 0:02:33]} 17. b3 {[%emt 0:01:17]} Bf8 {[%emt 0:00:13]} 18. a3 {[%emt 0:00:09]} Qc7 {[%emt 0:06:27]} 19. Qb2 {[%emt 0:04:10]} Bd7 {[%emt 0:00:17]} 20. Rfc1 {[%emt 0:00:12]} Be7 {[%emt 0:04:45]} 21. Nf1 {[%emt 0:00:11]} Rec8 {[%emt 0:05:16]} 22. Ne3 {[%emt 0:00:09]} Nh6 {[%emt 0:02:34]} 23. b4 {[%emt 0:02:26]} axb4 {[%emt 0:00:43]} 24. axb4 {[%emt 0:00:34]} Rxa1 {[%emt 0:00:56]} 25. Rxa1 {[%emt 0:00:04]} Kg7 {[%emt 0:02:25]} 26. f3 {[%emt 0:01:27]} Be8 {[%emt 0:03:33]} 27. Be1 {[%emt 0:01:51]} Ra8 {[%emt 0:03:06]} 28. Bf2 {[%emt 0:00:07]} Rxa1+ {[%emt 0:01:16]} 29. Qxa1 {[%emt 0:00:01]} Nd7 {[%emt 0:00:24]} 30. dxc6 {[%emt 0:06:29]} bxc6 {[%emt 0:00:06]} 31. b5 {[%emt 0:00:06]} Nc5 {[%emt 0:02:10]} 32. Qa8 {[%emt 0:01:56]} Bd8 {[%emt 0:01:44]} 33. Na4 {[%emt 0:00:40]} Nxa4 {[%emt 0:00:59]} 34. Qxa4 {[%emt 0:00:02]} Qa5 {[%emt 0:00:23]} 35. Qb3 {[%emt 0:01:39]} Bb6 {[%emt 0:00:51]} 36. Kf1 {[%emt 0:03:42]} Bc5 {[%emt 0:01:11]} 37. Nc2 {[%emt 0:00:47]} Bxf2 {[%emt 0:00:35]} 38. Kxf2 {[%emt 0:00:01]} Qb6+ {[%emt 0:00:32]} 39. Ke1 {[%emt 0:01:21]} Nf7 {[%emt 0:00:31]} 40. Qa4 {[%emt 0:00:36]} Bd7 {[%emt 0:00:54]} 41. Qa6 {[%emt 0:32:32]} Qxa6 {[%emt 0:16:11]} 42. bxa6 {[%emt 0:00:00]} c5 {[%emt 0:00:07]} 43. Ne3 {[%emt 0:00:00]} Nd8 {[%emt 0:04:36]} 44. Nf5+ {[%emt 0:00:00]} Kf8 {[%emt 0:00:10]} 45. Bd1 {[%emt 0:00:00]} Ne6 {[%emt 0:02:43]} 46. a7 {[%emt 0:00:00]} Nc7 {[%emt 0:00:14]} 47. Nxd6 {[%emt 0:00:00]} Bc6 {[%emt 0:01:00]} 48. Nb5 {[%emt 0:00:00]} Na8 {[%emt 0:00:36]} 49. Nc3 {[%emt 0:00:00]} Ke7 {[%emt 0:01:09]} 50. Nd5+ {[%emt 0:00:00]} Ke6 {[%emt 0:03:59]} 51. Kd2 {[%emt 0:00:00]} Kf7 {[%emt 0:00:11]} 52. Kc3 {[%emt 0:00:00]} Ke6 {[%emt 0:00:06]} 53. Kb2 {[%emt 0:00:00]} Kf7 {[%emt 0:00:33]} 54. Ka3 {[%emt 0:00:00]} Ke6 {[%emt 0:00:06]} 55. Ba4 {[%emt 0:00:00]} Bb7 {[%emt 0:00:36]} 56. h6 {[%emt 0:00:00]} Kf7 {[%emt 0:00:32]} 57. Bd7 {[%emt 0:00:00]} Kg6 {[%emt 0:00:27]} 58. Ka4 {[%emt 0:00:00]} 1-0

[Event "Vienna Chess Open 2019"]
[Site "Vienna"]
[Date "2019.08.20"]
[Round "5.6"]
[White "Morgunov, Daniel"]
[Black "Shengelia, David"]
[Result "0-1"]
[ECO "B62"]
[WhiteElo "2329"]
[BlackElo "2523"]
[Annotator "ChessBase"]
[PlyCount "76"]
[EventDate "2019.08.17"]
[EventType "swiss"]
[EventCountry "AUT"]
[SourceTitle "playchess.com"]
[Source "ChessBase"]
[SourceQuality "1"]
[TimeControl "40/5400+30:1800+30"]

1. e4 {[%emt 0:00:00]} c5 {[%emt 0:00:05]} 2. Nf3 {[%emt 0:00:00]} Nc6 {[%emt 0:00:05]} 3. d4 {[%emt 0:00:00]} cxd4 {[%emt 0:00:07]} 4. Nxd4 {[%emt 0:00:00]} Nf6 {[%emt 0:00:56]} 5. Nc3 {[%emt 0:00:00]} d6 {[%emt 0:00:11]} 6. Bg5 {[%emt 0:00:00]} e6 {[%emt 0:01:39]} 7. Bb5 {[%emt 0:00:08]} Bd7 {[%emt 0:01:27]} 8. Bxc6 {[%emt 0:00:19]} bxc6 {[%emt 0:03:15]} 9. Qf3 {[%emt 0:00:25]} h6 {[%emt 0:03:15]} 10. Bh4 {[%emt 0:00:30]} e5 {[%emt 0:06:07]} 11. Nf5 {[%emt 0:05:13]} Bxf5 {[%emt 0:00:51]} 12. Qxf5 {[%emt 0:01:01]} Qd7 {[%emt 0:01:39]} 13. Qf3 {[%emt 0:21:09]} Be7 {[%emt 0:04:43]} 14. O-O-O {[%emt 0:00:26]} O-O {[%emt 0:05:47]} 15. Rd3 {[%emt 0:02:57]} Rfd8 {[%emt 0:06:17]} 16. Rhd1 {[%emt 0:03:16]} Qe6 {[%emt 0:02:54]} 17. Kb1 {[%emt 0:02:00]} Rd7 {[%emt 0:02:58]} 18. Qe2 {[%emt 0:17:24]} Rad8 {[%emt 0:01:44]} 19. Bg3 {[%emt 0:02:04]} Bf8 {[%emt 0:07:40]} 20. h3 {[%emt 0:05:35]} Re8 {[%emt 0:03:39]} 21. Qd2 {[%emt 0:05:46]} Rb7 {[%emt 0:08:01]} 22. f4 {[%emt 0:12:25]} Qc4 {[%emt 0:07:31]} 23. fxe5 {[%emt 0:01:11]} dxe5 {[%emt 0:01:15]} 24. Re1 {[%emt 0:02:47]} Bb4 {[%emt 0:04:40]} 25. Ka1 {[%emt 0:01:32]} Ba5 {[%emt 0:07:59]} 26. Bh4 {[%emt 0:03:11]} Reb8 {[%emt 0:03:55]} 27. b3 {[%emt 0:01:18]} Nxe4 {[%emt 0:01:06]} 28. Rd8+ {[%emt 0:07:24]} Rxd8 {[%emt 0:05:02]} 29. Qxd8+ {[%emt 0:00:18]} Bxd8 {[%emt 0:00:03]} 30. bxc4 {[%emt 0:00:03]} Bxh4 {[%emt 0:01:08]} 31. Rxe4 {[%emt 0:00:06]} Be7 {[%emt 0:04:52]} 32. Rxe5 {[%emt 0:01:16]} Bf6 {[%emt 0:00:08]} 33. Re3 {[%emt 0:00:04]} Rb4 {[%emt 0:00:13]} 34. c5 {[%emt 0:02:51]} a5 {[%emt 0:01:13]} 35. a4 {[%emt 0:02:08]} Rxa4+ {[%emt 0:01:20]} 36. Kb1 {[%emt 0:00:03]} Ra3 {[%emt 0:00:36]} 37. Kb2 {[%emt 0:03:07]} Rxc3 {[%emt 0:00:10]} 38. Rxc3 {[%emt 0:00:05]} a4 {[%emt 0:00:16]} 0-1

[Event "Vienna Chess Open 2019"]
[Site "Vienna"]
[Date "2019.08.20"]
[Round "5.6"]
[White "Theissl Pokorna, Regina"]
[Black "Soysal, Serkan"]
[Result "0-1"]
[ECO "B09"]
[WhiteElo "2310"]
[BlackElo "2388"]
[Annotator "NA"]
[PlyCount "50"]
[EventDate "2019.08.17"]
[EventType "swiss"]
[EventCountry "AUT"]
[SourceTitle "playchess.com"]
[Source "ChessBase"]
[SourceQuality "1"]
[TimeControl "40/5400+30:1800+30"]

1. e4 {[%emt 0:00:00]} g6 {[%emt 0:05:23]} 2. d4 {[%emt 0:00:00]} Bg7 {[%emt 0:00:02]} 3. Nc3 {[%emt 0:00:58]} d6 {[%emt 0:00:02]} 4. f4 {[%emt 0:03:05]} Nf6 {[%emt 0:00:23]} 5. Nf3 {[%emt 0:00:06]} O-O {[%emt 0:00:07]} 6. Bd3 {[%emt 0:01:01]} Nh5 {[%emt 0:00:50]} 7. Be2 {[%emt 0:14:42]} c5 {[%emt 0:12:07]} 8. dxc5 {[%emt 0:18:06]} Bxc3+ {[%emt 0:05:37]} 9. bxc3 {[%emt 0:00:06]} dxc5 {[%emt 0:00:04]} 10. Be3 {[%emt 0:17:26]} Qa5 {[%emt 0:03:33]} 11. O-O {[%emt 0:02:16]} Qxc3 {[%emt 0:11:39]} 12. Bd2 {[%emt 0:03:51]} Qa3 {[%emt 0:00:26]} 13. Ne5 {[%emt 0:01:58]} Nf6 {[%emt 0:00:16]} 14. Bd3 {[%emt 0:00:58]} Nc6 {[%emt 0:01:19]} 15. Nxc6 {[%emt 0:10:23]} bxc6 {[%emt 0:00:02]} 16. Qe2 {[%emt 0:00:31]} Rd8 {[%emt 0:03:10]} 17. e5 {[%emt 0:02:43]} Nd5 {[%emt 0:11:15]} 18. f5 {[%emt 0:00:26]} c4 {[%emt 0:04:46]} 19. e6 {[%emt 0:11:34]} cxd3 {[%emt 0:04:16]} 20. exf7+ {[%emt 0:00:07]} Kg7 {[%emt 0:00:08]} 21. Qe5+ {[%emt 0:00:19]} Nf6 {[%emt 0:00:03]} 22. fxg6 {[%emt 0:00:27]} hxg6 {[%emt 0:03:23]} 23. Rae1 {[%emt 0:04:33]} Kxf7 {[%emt 0:03:54]} 24. Bg5 {[%emt 0:03:11]} Qd6 {[%emt 0:01:36]} 25. Qc3 {[%emt 0:00:31]} Bf5 {[%emt 0:00:17]} 0-1

[Event "Vienna Chess Open 2019"]
[Site "Vienna"]
[Date "2019.08.20"]
[Round "5.7"]
[White "Gumularz, Szymon"]
[Black "Huber, Martin Christian"]
[Result "1-0"]
[ECO "A10"]
[WhiteElo "2501"]
[BlackElo "2337"]
[Annotator "ChessBase"]
[PlyCount "95"]
[EventDate "2019.08.17"]
[EventType "swiss"]
[EventCountry "AUT"]
[SourceTitle "playchess.com"]
[Source "ChessBase"]
[SourceQuality "1"]
[TimeControl "40/5400+30:1800+30"]

1. c4 {[%emt 0:00:00]} g6 {[%emt 0:01:11]} 2. Nc3 {[%emt 0:00:00]} c5 {[%emt 0:00:35]} 3. e3 {[%emt 0:02:31]} Nf6 {[%emt 0:00:53]} 4. d4 {[%emt 0:00:49]} cxd4 {[%emt 0:01:50]} 5. exd4 {[%emt 0:00:04]} d5 {[%emt 0:00:06]} 6. Qb3 {[%emt 0:00:24]} Bg7 {[%emt 0:04:38]} 7. cxd5 {[%emt 0:00:42]} O-O {[%emt 0:02:29]} 8. Be2 {[%emt 0:00:33]} b6 {[%emt 0:17:53]} 9. Bf3 {[%emt 0:03:38]} Bb7 {[%emt 0:00:04]} 10. Nge2 {[%emt 0:00:10]} Qd7 {[%emt 0:01:42]} 11. O-O {[%emt 0:01:05]} Na6 {[%emt 0:06:06]} 12. Re1 {[%emt 0:01:45]} Rad8 {[%emt 0:02:59]} 13. Nf4 {[%emt 0:00:37]} Rfe8 {[%emt 0:01:33]} 14. Bd2 {[%emt 0:03:43]} Ba8 {[%emt 0:10:13]} 15. Qa3 {[%emt 0:15:45]} Bb7 {[%emt 0:04:42]} 16. Be2 {[%emt 0:05:39]} Qd6 {[%emt 0:11:34]} 17. Qxd6 {[%emt 0:11:48]} exd6 {[%emt 0:01:20]} 18. Bb5 {[%emt 0:00:37]} Rxe1+ {[%emt 0:12:17]} 19. Rxe1 {[%emt 0:00:06]} Nb8 {[%emt 0:05:46]} 20. a4 {[%emt 0:06:50]} Kf8 {[%emt 0:02:37]} 21. h4 {[%emt 0:03:11]} a6 {[%emt 0:00:50]} 22. Bc4 {[%emt 0:00:22]} Re8 {[%emt 0:01:24]} 23. Rc1 {[%emt 0:02:46]} Rc8 {[%emt 0:03:11]} 24. b3 {[%emt 0:00:39]} Nbd7 {[%emt 0:01:28]} 25. f3 {[%emt 0:01:04]} Ne8 {[%emt 0:00:58]} 26. Be3 {[%emt 0:00:56]} h5 {[%emt 0:01:25]} 27. Kf2 {[%emt 0:00:51]} Ndf6 {[%emt 0:00:37]} 28. Ke2 {[%emt 0:03:35]} Nc7 {[%emt 0:01:24]} 29. Kd2 {[%emt 0:03:52]} Ke7 {[%emt 0:01:06]} 30. Rg1 {[%emt 0:03:59]} Rh8 {[%emt 0:01:00]} 31. Re1 {[%emt 0:13:15]} Kd7 {[%emt 0:00:04]} 32. g3 {[%emt 0:00:10]} Rb8 {[%emt 0:00:45]} 33. b4 {[%emt 0:02:57]} Re8 {[%emt 0:00:31]} 34. Rc1 {[%emt 0:04:23]} Bh6 {[%emt 0:00:43]} 35. Bf1 {[%emt 0:00:12]} Rxe3 {[%emt 0:01:00]} 36. Kxe3 {[%emt 0:02:50]} Ncxd5+ {[%emt 0:00:20]} 37. Kf2 {[%emt 0:01:33]} Nxf4 {[%emt 0:00:16]} 38. gxf4 {[%emt 0:00:03]} Bxf4 {[%emt 0:00:04]} 39. Rc2 {[%emt 0:00:13]} d5 {[%emt 0:00:59]} 40. a5 {[%emt 0:01:00]} b5 {[%emt 0:00:50]} 41. Nxb5 {[%emt 0:05:39]} Ne8 {[%emt 0:08:36]} 42. Nc3 {[%emt 0:02:08]} Nc7 {[%emt 0:01:09]} 43. b5 {[%emt 0:03:10]} axb5 {[%emt 0:00:11]} 44. Nxb5 {[%emt 0:00:12]} Ne6 {[%emt 0:00:20]} 45. Ra2 {[%emt 0:01:17]} Ba6 {[%emt 0:02:04]} 46. Nc3 {[%emt 0:00:22]} Bxf1 {[%emt 0:00:23]} 47. Kxf1 {[%emt 0:00:04]} Bb8 {[%emt 0:00:40]} 48. a6 {[%emt 0:00:12]} 1-0